fUST/lending_fUST_20250709
["ID","MTS","AMOUNT","RATE_DAILY","PERIOD"]
[370396752,1751995838131,-460.0,0.00020821,2]
[370396753,1751995838142,-627.59,0.00020821,2]
[370396754,1751995838152,-732.99,0.00020821,2]
[370396755,1751995838161,-460.0,0.00020821,2]
[370396756,1751995838171,-460.0,0.00020821,2]
[370396757,1751995838181,-460.0,0.00020821,2]
[370396758,1751995838190,-460.0,0.00020821,2]
[370396759,1751995838200,-460.0,0.00020821,2]
[370396760,1751995838208,-1645.51,0.00020821,2]
[370396761,1751995838218,-460.0,0.00020821,2]
[370396762,1751995838227,-904.48,0.00020821,2]
[370396763,1751995838238,-433.20788172,0.00020821,2]
[370396764,1751995838247,-460.0,0.00020821,2]
[370396765,1751995838258,-460.0,0.00020821,2]
[370396766,1751995838268,-460.0,0.00020821,2]
[370396767,1751995838278,-460.0,0.00020821,2]
[370396768,1751995838289,-479.90224647,0.00020821,2]
[370396769,1751995838298,-977.35,0.00020821,2]
[370396770,1751995838306,-460.0,0.00020821,2]
[370396771,1751995838316,-731.99,0.00020821,2]
[370396772,1751995838324,-460.0,0.00020821,2]
[370396773,1751995838333,-460.0,0.00020821,2]
[370396774,1751995838343,-876.8,0.00020821,2]
[370396775,1751995838352,-1404.21,0.00020821,2]
[370396776,1751995838361,-1286.22,0.00020821,2]
[370396777,1751995838370,-464.47,0.00020821,2]
[370396778,1751995838380,-460.0,0.00020821,2]
[370396779,1751995838389,-460.0,0.00020821,2]
[370396780,1751995838398,-535.65,0.00020821,2]
[370396781,1751995838408,-519.92,0.00020821,2]
[370396782,1751995838417,-240.0779289,0.00020821,2]
[370396783,1751995838426,-151.0,0.00020821,2]
[370396784,1751995838437,-890.24,0.00020821,2]
[370396785,1751995838446,-460.0,0.00020821,2]
[370396786,1751995838456,-460.0,0.00020821,2]
[370396787,1751995838466,-460.0,0.00020821,2]
[370396788,1751995838475,-151.0,0.00020821,2]
[370396789,1751995838484,-460.0,0.00020821,2]
[370396790,1751995838494,-151.0,0.00020821,2]
[370396791,1751995838503,-460.0,0.00020821,2]
[370396792,1751995838513,-1062.41,0.00020821,2]
[370396793,1751995838522,-500.0,0.00020864,2]
[370396794,1751995838531,-500.0,0.00020875,2]
[370396795,1751995838541,-151.0,0.000209,3]
[370396796,1751995838550,-151.0,0.000209,3]
[370396797,1751995838559,-151.0,0.000209,3]
[370396798,1751995838569,-500.0,0.0002097,2]
[370396799,1751995838578,-155.0,0.00020972,2]
[370396800,1751995838587,-26711.68795543,0.00020998,2]
[370396801,1751995838795,-2542.65643756,0.000199,2]
[370396802,1751995838805,-8.32356244,0.00020107,2]
[370396803,1751995838869,-2534.33287487,0.00020107,2]
[370396804,1751995838879,-2542.65643731,0.00020314,3]
[370396805,1751995838888,-2542.65643731,0.00020521,3]
[370396806,1751995838898,-2542.65643731,0.00020728,3]
[370396807,1751995838907,-2542.65643731,0.00020934,4]
[370396808,1751995838918,-8261.09088807,0.00020998,2]
[370396809,1751995838935,-878.0,0.00021,2]
[370396810,1751995838945,-3000.0,0.00021,2]
[370396811,1751995838956,-3000.0,0.0002101,2]
[370396812,1751995838966,-3000.0,0.0002102,2]
[370396813,1751995838977,-3000.0,0.0002103,2]
[370396814,1751995838987,-3000.0,0.0002104,2]
[370396815,1751995838998,-3000.0,0.0002105,2]
[370396816,1751995839009,-3000.0,0.0002106,2]
[370396817,1751995839019,-500.0,0.00021064,2]
[370396818,1751995839029,-3000.0,0.0002107,2]
[370396819,1751995839039,-500.0,0.00021073,2]
[370396820,1751995839048,-500.0,0.00021073,2]
[370396821,1751995839058,-500.0,0.00021073,2]
[370396822,1751995839068,-3000.0,0.0002108,2]
[370396823,1751995839078,-25000.0,0.00021083,2]
[370396824,1751995839087,-13921.9292495,0.00021083,2]
[370396825,1751995839100,-4858.64262905,0.00021083,2]
[370396826,1751995839111,-4367.55020423,0.00021083,2]
[370396827,1751995839121,-690.642,0.00021083,2]
[370396828,1751995839131,-151.0,0.00021083,2]
[370396829,1751995839140,-207.4,0.00021083,2]
[370396830,1751995839152,-151.0,0.00021083,2]
[370396831,1751995839301,-500.0,0.00021083,2]
[370396832,1751995839311,-500.0,0.00021083,2]
[370396833,1751995839322,-151.0,0.00021083,2]
[370396834,1751995839333,-151.0,0.00021083,2]
[370396836,1751995839344,-500.0,0.00021083,2]
[370396838,1751995839355,-151.0,0.00021083,2]
[370396839,1751995839366,-151.0,0.00021083,2]
[370396840,1751995839376,-151.0,0.00021083,2]
[370396841,1751995839386,-500.0,0.00021083,2]
[370396842,1751995839395,-500.0,0.00021083,2]
[370396843,1751995839404,-151.0,0.00021083,2]
[370396844,1751995839413,-151.0,0.00021083,2]
[370396845,1751995839423,-151.0,0.00021083,2]
[370396846,1751995839434,-500.0,0.00021083,2]
[370396847,1751995839443,-151.0,0.00021083,2]
[370396848,1751995839452,-500.0,0.00021083,2]
[370396849,1751995839462,-151.0,0.00021083,2]
[370396851,1751995839471,-500.0,0.00021083,2]
[370396853,1751995839480,-151.0,0.00021083,2]
[370396856,1751995839490,-500.0,0.00021083,2]
[370396859,1751995839500,-151.0,0.00021083,2]
[370396862,1751995839510,-500.0,0.00021083,2]
[370396863,1751995839519,-500.0,0.00021083,2]
[370396865,1751995839529,-561.54135328,0.00021083,2]
[370396867,1751995839538,-151.0,0.00021083,2]
[370396869,1751995839547,-151.0,0.00021083,2]
[370396871,1751995839556,-151.0,0.00021083,2]
[370396873,1751995839565,-151.0,0.00021083,2]
[370396875,1751995839575,-151.0,0.00021083,2]
[370396878,1751995839586,-151.0,0.00021083,2]
[370396879,1751995839596,-151.0,0.00021083,2]
[370396881,1751995839605,-151.0,0.00021083,2]
[370396883,1751995839615,-711.36514,0.00021083,2]
[370396885,1751995839624,-711.36514,0.00021083,2]
[370396887,1751995839634,-151.0,0.00021083,2]
[370396889,1751995839644,-151.0,0.00021083,2]
[370396891,1751995839654,-151.0,0.00021083,2]
[370396895,1751995839663,-204.305689,0.00021083,2]
[370396898,1751995839673,-204.305689,0.00021083,2]
[370396901,1751995839685,-151.0,0.00021083,2]
[370396904,1751995839694,-151.0,0.00021083,2]
[370396906,1751995839705,-3000.0,0.0002109,2]
[370396908,1751995839714,-151.0,0.00021095,2]
[370396910,1751995839724,-151.0,0.00021095,2]
[370396913,1751995839734,-151.0,0.00021095,2]
[370396914,1751995839743,-151.0,0.00021095,2]
[370396916,1751995839753,-151.0,0.00021095,2]
[370396917,1751995839762,-460.0,0.00021095,2]
[370396919,1751995839771,-151.0,0.00021095,2]
[370396920,1751995839780,-160.922161,0.00021095,2]
[370396922,1751995839790,-262.50891,0.00021095,2]
[370396924,1751995839799,-160.922161,0.00021095,2]
[370396925,1751995839809,-262.50891,0.00021095,2]
[370396927,1751995839818,-438.19,0.00021095,2]
[370396928,1751995839829,-151.0,0.00021095,2]
[370396930,1751995839838,-151.0,0.00021095,2]
[370396932,1751995839847,-151.0,0.00021095,2]
[370396933,1751995839856,-460.0,0.00021095,2]
[370396935,1751995839866,-151.0,0.00021095,2]
[370396937,1751995839875,-237.432285,0.00021095,2]
[370396938,1751995839885,-151.0,0.00021095,2]
[370396940,1751995839894,-288.21612965,0.00021095,2]
[370396941,1751995839903,-460.0,0.00021095,2]
[370396943,1751995839913,-1738.59,0.00021095,2]
[370396945,1751995839924,-460.0,0.00021095,2]
[370396946,1751995839935,-460.0,0.00021095,2]
[370396948,1751995839945,-627.59,0.00021095,2]
[370396949,1751995839954,-732.99,0.00021095,2]
[370396951,1751995839963,-460.0,0.00021095,2]
[370396953,1751995839976,-460.0,0.00021095,2]
[370396954,1751995839985,-460.0,0.00021095,2]
[370396956,1751995839995,-460.0,0.00021095,2]
[370396958,1751995840005,-460.0,0.00021095,2]
[370396959,1751995840015,-1645.51,0.00021095,2]
[370396961,1751995840024,-536.12462463,0.00021095,2]
[370396963,1751995840033,-904.48,0.00021095,2]
[370396965,1751995840042,-460.0,0.00021095,2]
[370396966,1751995840051,-460.0,0.00021095,2]
[370396968,1751995840060,-460.0,0.00021095,2]
[370396970,1751995840070,-460.0,0.00021095,2]
[370396972,1751995840081,-977.35,0.00021095,2]
[370396973,1751995840091,-460.0,0.00021095,2]
[370396975,1751995840099,-731.99,0.00021095,2]
[370396977,1751995840109,-460.0,0.00021095,2]
[370396978,1751995840118,-876.8,0.00021095,2]
[370396980,1751995840127,-1404.21,0.00021095,2]
[370396982,1751995840137,-1286.22,0.00021095,2]
[370396984,1751995840147,-397.62758482,0.00021095,2]
[370396985,1751995840155,-212.62912703,0.00021095,2]
[370396987,1751995840164,-535.65,0.00021095,2]
[370396989,1751995840173,-519.92,0.00021095,2]
[370396991,1751995840185,-890.24,0.00021095,2]
[370396992,1751995840194,-460.0,0.00021095,2]
[370396993,1751995840203,-151.0,0.00021095,2]
[370396994,1751995840213,-302.69491276,0.00021095,2]
[370396995,1751995840222,-1062.41,0.00021095,2]
[370396996,1751995840231,-3000.0,0.000211,2]
[370396997,1751995840240,-151.0,0.000211,2]
[370396999,1751995840249,-151.0,0.000211,2]
[370397001,1751995840258,-151.0,0.000211,2]
[370397003,1751995840267,-3000.0,0.0002111,2]
[370397005,1751995840277,-151.0,0.0002111,2]
[370397007,1751995840286,-3000.0,0.0002112,2]
[370397009,1751995840295,-3000.0,0.0002113,2]
[370397011,1751995840304,-716.195754,0.00021138,2]
[370397013,1751995840313,-3000.0,0.0002114,2]
[370397015,1751995840322,-151.0,0.0002114,2]
[370397017,1751995840331,-151.0,0.0002114,2]
[370397019,1751995840340,-151.0,0.0002114,2]
[370397021,1751995840349,-259.479774,0.0002114,2]
[370397023,1751995840358,-151.0,0.0002114,2]
[370397024,1751995840367,-259.479774,0.0002114,2]
[370397026,1751995840376,-151.0,0.0002114,2]
[370397028,1751995840385,-151.0,0.0002114,2]
[370397030,1751995840394,-151.0,0.0002114,2]
[370397032,1751995840403,-151.0,0.0002114,2]
[370397034,1751995840412,-403.584055,0.0002114,2]
[370397035,1751995840421,-403.584055,0.0002114,2]
[370397037,1751995840432,-151.0,0.0002114,2]
[370397039,1751995840441,-198.260951,0.0002114,2]
[370397041,1751995840450,-198.260951,0.0002114,2]
[370397043,1751995840459,-151.0,0.0002114,2]
[370397045,1751995840468,-151.0,0.0002114,2]
[370397047,1751995840476,-2542.65643731,0.00021141,4]
[370397049,1751995840486,-5028.180971,0.0002115,2]
[370397051,1751995840495,-500.0,0.00021158,2]
[370397053,1751995840504,-544.07278285,0.00021193,2]
[370397067,1751995840634,-198.62221405,0.00021193,2]
[370397069,1751995840643,-153.0,0.00021233,2]
[370397071,1751995840652,-153.0,0.00021233,2]
[370397073,1751995840661,-321.9350956,0.00021233,2]
[370397075,1751995840675,-770.17471178,0.00021248,2]
[370397078,1751995840689,-500.0,0.00021252,2]
[370397080,1751995840702,-798.67117612,0.00021303,2]
[370397082,1751995840714,-500.0,0.00021346,2]
[370397084,1751995840726,-2542.65643731,0.00021348,5]
[370397086,1751995840736,-828.22200964,0.00021358,2]
[370397089,1751995840748,-151.0,0.00021369,2]
[370397091,1751995840760,-151.0,0.00021369,2]
[370397093,1751995840771,-884.206128,0.00021369,2]
[370397095,1751995840783,-884.206128,0.00021369,2]
[370397097,1751995840795,-195.888647,0.00021369,2]
[370397100,1751995840807,-195.888647,0.00021369,2]
[370397102,1751995840820,-460.0,0.00021369,2]
[370397104,1751995840831,-460.0,0.00021369,2]
[370397106,1751995840844,-460.0,0.00021369,2]
[370397108,1751995840856,-1738.59,0.00021369,2]
[370397111,1751995840869,-460.0,0.00021369,2]
[370397113,1751995840881,-460.0,0.00021369,2]
[370397115,1751995840892,-627.59,0.00021369,2]
[370397117,1751995840904,-101.15413373,0.00021369,2]
[370397120,1751995840920,-631.83586627,0.00021369,2]
[370397122,1751995840934,-362.66413373,0.00021369,2]
[370397403,1751995843103,-97.33586627,0.00021369,2]
[370397404,1751995843115,-460.0,0.00021369,2]
[370397405,1751995843127,-460.0,0.00021369,2]
[370397409,1751995843151,-460.0,0.00021369,2]
[370397411,1751995843162,-460.0,0.00021369,2]
[370397413,1751995843175,-1645.51,0.00021369,2]
[370397415,1751995843189,-904.48,0.00021369,2]
[370397417,1751995843202,-460.0,0.00021369,2]
[370397418,1751995843216,-460.0,0.00021369,2]
[370397419,1751995843231,-460.0,0.00021369,2]
[370397420,1751995843246,-460.0,0.00021369,2]
[370397421,1751995843261,-977.35,0.00021369,2]
[370397422,1751995843275,-460.0,0.00021369,2]
[370397423,1751995843290,-731.99,0.00021369,2]
[370397424,1751995843303,-460.0,0.00021369,2]
[370397425,1751995843317,-876.8,0.00021369,2]
[370397426,1751995843331,-1404.21,0.00021369,2]
[370397427,1751995843343,-1286.22,0.00021369,2]
[370397428,1751995843354,-535.65,0.00021369,2]
[370397429,1751995843364,-519.92,0.00021369,2]
[370397430,1751995843375,-890.24,0.00021369,2]
[370397431,1751995843385,-460.0,0.00021369,2]
[370397432,1751995843398,-1062.41,0.00021369,2]
[370397433,1751995843411,-858.86622399,0.00021413,2]
[370397434,1751995843425,-500.0,0.0002144,2]
[370397435,1751995843440,-890.64427428,0.00021468,2]
[370397436,1751995843451,-813.77111377,0.000215,7]
[370397475,1751995845964,-29431.88237576,0.000215,7]
[370397476,1751995845977,-923.59811243,0.00021523,2]
[370397477,1751995845988,-2542.65643731,0.00021555,5]
[370397479,1751995846003,-682.97259854,0.00021578,2]
[370397481,1751995846015,-976.79222931,0.00021621,2]
[370397482,1751995846027,-1008.96652118,0.00021621,2]
[370397483,1751995846038,-501.05779437,0.00021621,2]
[370397484,1751995846048,-8695.2355352,0.00021631,2]
[370397490,1751996002240,151.0,0.00027397,120]
[370397491,1751996010746,200.0,0.00024438,120]
[370397492,1751996017058,152.0,0.00027397,120]
[370397493,1751996022274,4484.33432,0.00018143,2]
[370397494,1751996035399,151.0,0.00027397,120]
[370397505,1751996070768,200.0,0.00026284,120]
[370397506,1751996092195,10000.0,0.00017862,2]
[370397507,1751996191201,200.0,0.00027297,120]
[370397521,1751996437361,524.419919,0.00017766,2]
[370397522,1751996449450,24900.0,0.00017766,2]
[370397523,1751996457424,10101.7535279,0.00017908,2]
[370397525,1751996549769,285.4848,0.00027397,120]
[370397526,1751996553882,200.0,0.00024068,120]
[370397528,1751996591839,1444.0,0.00026137,120]
[370397529,1751996611465,200.0,0.00027004,120]
[370397531,1751996911115,200.0,0.00026879,120]
[370397533,1751996970083,467.348759,0.00013699,2]
[370397534,1751996971398,200.0,0.00026221,120]
[370397569,1751997032061,-193.57926071,0.00018203,2]
[370397571,1751997032070,-169.55,0.00018757,3]
[370397573,1751997032079,-573.95804161,0.00018757,3]
[370397578,1751997032114,-273.83195839,0.00018757,3]
[370397580,1751997032123,-300.0,0.00018762,2]
[370397582,1751997032132,-701.65804161,0.00018762,2]
[370397585,1751997032143,-338.91554705,0.00018762,2]
[370397587,1751997032154,-159.42641134,0.00018762,2]
[370397589,1751997032163,-1200.0,0.00018763,2]
[370397591,1751997032172,-212.33487834,0.00018763,2]
[370397593,1751997032185,-87.66512166,0.00018763,2]
[370397595,1751997032195,-300.0,0.00018763,2]
[370397600,1751997032205,-300.0,0.00018763,2]
[370397602,1751997032215,-506.33487834,0.00018766,2]
[370397606,1751997032226,-2784.04716605,0.00018766,2]
[370397609,1751997032235,-764.16681131,0.00018766,2]
[370397612,1751997032244,-764.16681131,0.00018766,2]
[370397614,1751997032253,-764.16681131,0.00018766,2]
[370397616,1751997032262,-764.16681131,0.00018766,2]
[370397618,1751997032271,-764.16681131,0.00018766,2]
[370397620,1751997032280,-764.16681131,0.00018766,2]
[370397622,1751997032293,-764.16681131,0.00018766,2]
[370397624,1751997032302,-764.16681131,0.00018766,2]
[370397626,1751997032311,-764.16681131,0.00018766,2]
[370397628,1751997032320,-764.16681131,0.00018766,2]
[370397630,1751997032330,-764.16681131,0.00018766,2]
[370397632,1751997032339,-764.16681131,0.00018766,2]
[370397634,1751997032350,-764.16681131,0.00018766,2]
[370397636,1751997032360,-764.16681131,0.00018766,2]
[370397638,1751997032371,-764.16681131,0.00018766,2]
[370397640,1751997032380,-500.0,0.00018766,2]
[370397642,1751997032389,-513.82750856,0.00018766,2]
[370397644,1751997032398,-764.16681131,0.00018766,2]
[370397646,1751997032407,-157.1965206,0.00018766,2]
[370397648,1751997032417,-764.16681131,0.00018766,2]
[370397650,1751997032426,-764.16681131,0.00018766,2]
[370397652,1751997032435,-764.16681131,0.00018766,2]
[370397654,1751997032445,-825.30015622,0.00018766,2]
[370397656,1751997032455,-825.30015622,0.00018766,2]
[370397658,1751997032465,-825.30015622,0.00018766,2]
[370397660,1751997032474,-825.30015622,0.00018766,2]
[370397662,1751997032484,-825.30015622,0.00018766,2]
[370397664,1751997032493,-825.30015622,0.00018766,2]
[370397666,1751997032503,-825.30015622,0.00018766,2]
[370397668,1751997032512,-825.30015622,0.00018766,2]
[370397670,1751997032521,-825.30015622,0.00018766,2]
[370397672,1751997032530,-370000.0,0.00018767,2]
[370397674,1751997032539,-224.27284737,0.00018795,2]
[370397676,1751997032548,-286.22786894,0.00018895,2]
[370397678,1751997032558,-1305.9394969,0.000189,2]
[370397679,1751997032567,-1852.93819948,0.00019,2]
[370397680,1751997032576,-1852.93819925,0.00019141,2]
[370397681,1751997032585,-229.3139272,0.00019178,2]
[370397682,1751997032594,-460.0,0.00019178,2]
[370397683,1751997032603,-460.0,0.00019178,2]
[370397684,1751997032612,-460.0,0.00019178,2]
[370397685,1751997032621,-460.0,0.00019178,2]
[370397686,1751997032630,-323.3897298,0.00019178,2]
[370397687,1751997032639,-460.0,0.00019178,2]
[370397688,1751997032648,-460.0,0.00019178,2]
[370397689,1751997032657,-460.0,0.00019178,2]
[370397690,1751997032666,-155.90135499,0.00019178,2]
[370397691,1751997032675,-460.0,0.00019178,2]
[370397692,1751997032685,-460.0,0.00019178,2]
[370397693,1751997032694,-460.0,0.00019178,2]
[370397694,1751997032703,-460.0,0.00019178,2]
[370397695,1751997032713,-460.0,0.00019178,2]
[370397697,1751997032722,-460.0,0.00019178,2]
[370397699,1751997032731,-460.0,0.00019178,2]
[370397701,1751997032740,-460.0,0.00019178,2]
[370397703,1751997032748,-460.0,0.00019178,2]
[370397705,1751997032757,-460.0,0.00019178,2]
[370397707,1751997032766,-460.0,0.00019178,2]
[370397710,1751997032775,-460.0,0.00019178,2]
[370397712,1751997032784,-460.0,0.00019178,2]
[370397714,1751997032793,-460.0,0.00019178,2]
[370397716,1751997032802,-455.0,0.00019178,2]
[370397718,1751997032811,-523.98708981,0.00019178,2]
[370397720,1751997032820,-460.0,0.00019178,2]
[370397722,1751997032829,-485.02,0.00019178,2]
[370397724,1751997032838,-562.0,0.00019178,2]
[370397726,1751997032847,-460.0,0.00019178,2]
[370397728,1751997032856,-460.0,0.00019178,2]
[370397730,1751997032866,-460.0,0.00019178,2]
[370397732,1751997032875,-460.0,0.00019178,2]
[370397734,1751997032884,-664.0,0.00019178,2]
[370397736,1751997032893,-460.0,0.00019178,2]
[370397738,1751997032902,-460.0,0.00019178,2]
[370397740,1751997032912,-460.0,0.00019178,2]
[370397742,1751997032921,-460.0,0.00019178,2]
[370397744,1751997032930,-1098.59,0.00019178,2]
[370397746,1751997032939,-337.69558542,0.00019178,2]
[370397748,1751997032949,-803.89,0.00019178,2]
[370397750,1751997032958,-460.0,0.00019178,2]
[370397752,1751997032967,-460.0,0.00019178,2]
[370397754,1751997032976,-460.0,0.00019178,2]
[370397756,1751997032986,-460.0,0.00019178,2]
[370397758,1751997032995,-460.0,0.00019178,2]
[370397760,1751997033005,-460.0,0.00019178,2]
[370397762,1751997033015,-460.0,0.00019178,2]
[370397764,1751997033024,-460.0,0.00019178,2]
[370397766,1751997033033,-720.41,0.00019178,2]
[370397768,1751997033043,-460.0,0.00019178,2]
[370397770,1751997033052,-659.45,0.00019178,2]
[370397772,1751997033061,-922.67,0.00019178,2]
[370397774,1751997033071,-460.0,0.00019178,2]
[370397776,1751997033080,-460.0,0.00019178,2]
[370397778,1751997033091,-460.0,0.00019178,2]
[370397780,1751997033100,-460.0,0.00019178,2]
[370397782,1751997033109,-460.0,0.00019178,2]
[370397784,1751997033118,-460.0,0.00019178,2]
[370397786,1751997033129,-587.69,0.00019178,2]
[370397788,1751997033138,-460.0,0.00019178,2]
[370397790,1751997033149,-460.0,0.00019178,2]
[370397792,1751997033158,-460.0,0.00019178,2]
[370397794,1751997033167,-1096.64,0.00019178,2]
[370397796,1751997033177,-460.0,0.00019178,2]
[370397798,1751997033187,-460.0,0.00019178,2]
[370397800,1751997033197,-460.0,0.00019178,2]
[370397802,1751997033206,-460.0,0.00019178,2]
[370397804,1751997033216,-460.0,0.00019178,2]
[370397806,1751997033226,-460.0,0.00019178,2]
[370397808,1751997033235,-460.0,0.00019178,2]
[370397810,1751997033244,-460.0,0.00019178,2]
[370397812,1751997033254,-585.36,0.00019178,2]
[370397814,1751997033263,-460.0,0.00019178,2]
[370397816,1751997033272,-460.0,0.00019178,2]
[370397818,1751997033281,-460.0,0.00019178,2]
[370397820,1751997033294,-460.0,0.00019178,2]
[370397822,1751997033302,-460.0,0.00019178,2]
[370397824,1751997033312,-194.547304,0.00019178,2]
[370397826,1751997033321,-66227.02277829,0.00019329,2]
[370397828,1751997033331,-224.27284735,0.00019345,2]
[370397830,1751997033341,-500.0,0.00019373,2]
[370397832,1751997033350,-1852.93819925,0.00019383,2]
[370397834,1751997033361,-460.0,0.00019452,2]
[370397836,1751997033370,-460.0,0.00019452,2]
[370397838,1751997033380,-460.0,0.00019452,2]
[370397840,1751997033390,-485.02,0.00019452,2]
[370397842,1751997033400,-460.0,0.00019452,2]
[370397844,1751997033410,-664.0,0.00019452,2]
[370397846,1751997033419,-460.0,0.00019452,2]
[370397848,1751997033429,-1098.59,0.00019452,2]
[370397850,1751997033439,-803.89,0.00019452,2]
[370397852,1751997033448,-460.0,0.00019452,2]
[370397853,1751997033457,-460.0,0.00019452,2]
[370397854,1751997033467,-460.0,0.00019452,2]
[370397855,1751997033478,-720.41,0.00019452,2]
[370397856,1751997033487,-153.7743496,0.00019452,2]
[370397857,1751997033496,-659.45,0.00019452,2]
[370397858,1751997033506,-922.67,0.00019452,2]
[370397859,1751997033515,-460.0,0.00019452,2]
[370397860,1751997033526,-460.0,0.00019452,2]
[370397861,1751997033535,-460.0,0.00019452,2]
[370397862,1751997033544,-587.69,0.00019452,2]
[370397864,1751997033554,-460.0,0.00019452,2]
[370397867,1751997033569,-1096.64,0.00019452,2]
[370397869,1751997033583,-460.0,0.00019452,2]
[370397871,1751997033593,-460.0,0.00019452,2]
[370397873,1751997033603,-460.0,0.00019452,2]
[370397875,1751997033613,-460.0,0.00019452,2]
[370397877,1751997033622,-585.36,0.00019452,2]
[370397879,1751997033632,-380.80732375,0.00019452,2]
[370397881,1751997033642,-460.0,0.00019452,2]
[370397882,1751997033652,-460.0,0.00019452,2]
[370397883,1751997033661,-167.82774,0.00019543,2]
[370397884,1751997033672,-392289.5562008,0.000196,2]
[370397886,1751997033682,-1852.93819925,0.00019624,2]
[370397888,1751997033692,-167.82774,0.00019721,2]
[370397890,1751997033702,-605.51632101,0.00019726,2]
[370397892,1751997033714,-460.0,0.00019726,2]
[370397894,1751997033724,-460.0,0.00019726,2]
[370397896,1751997033733,-485.02,0.00019726,2]
[370397898,1751997033743,-460.0,0.00019726,2]
[370397900,1751997033753,-664.0,0.00019726,2]
[370397902,1751997033763,-460.0,0.00019726,2]
[370397904,1751997033773,-1098.59,0.00019726,2]
[370397906,1751997033783,-803.89,0.00019726,2]
[370397908,1751997033792,-460.0,0.00019726,2]
[370397910,1751997033802,-460.0,0.00019726,2]
[370397911,1751997033812,-460.0,0.00019726,2]
[370397912,1751997033821,-720.41,0.00019726,2]
[370397913,1751997033831,-659.45,0.00019726,2]
[370397914,1751997033842,-922.67,0.00019726,2]
[370397915,1751997033852,-460.0,0.00019726,2]
[370397916,1751997033862,-460.0,0.00019726,2]
[370397917,1751997033871,-460.0,0.00019726,2]
[370397918,1751997033881,-587.69,0.00019726,2]
[370397919,1751997033891,-460.0,0.00019726,2]
[370397920,1751997033901,-1096.64,0.00019726,2]
[370397921,1751997033911,-539.64443096,0.00019726,2]
[370397922,1751997033921,-460.0,0.00019726,2]
[370397923,1751997033931,-460.0,0.00019726,2]
[370397924,1751997033941,-460.0,0.00019726,2]
[370397925,1751997033951,-585.36,0.00019726,2]
[370397926,1751997033962,-460.0,0.00019726,2]
[370397927,1751997033971,-460.0,0.00019726,2]
[370397928,1751997033981,-500.0,0.00019743,2]
[370397929,1751997033991,-500.0,0.00019743,2]
[370397930,1751997034000,-1852.93819925,0.00019866,2]
[370397931,1751997034010,-224.27284735,0.00019895,2]
[370397932,1751997034020,-167.82774,0.00019898,2]
[370397933,1751997034030,-15608.34981,0.00019999,2]
[370397934,1751997034040,-4430.0,0.0002,2]
[370397935,1751997034050,-460.0,0.0002,2]
[370397936,1751997034060,-460.0,0.0002,2]
[370397937,1751997034069,-485.02,0.0002,2]
[370397938,1751997034079,-460.0,0.0002,2]
[370397939,1751997034090,-664.0,0.0002,2]
[370397940,1751997034100,-460.0,0.0002,2]
[370397941,1751997034110,-1098.59,0.0002,2]
[370397942,1751997034119,-803.89,0.0002,2]
[370397943,1751997034129,-460.0,0.0002,2]
[370397944,1751997034139,-361.68386184,0.0002,2]
[370397945,1751997034148,-460.0,0.0002,2]